fUSD/lending_fUSD_20250301
["ID","MTS","AMOUNT","RATE_DAILY","PERIOD"]
[354949720,1740841838218,-23099.42757289,0.00015,2]
[354949721,1740841838230,-2516.00545635,0.00015,2]
[354949722,1740841838241,-1049.99999,0.00015,2]
[354949723,1740841838270,-0.06779765,0.00015,2]
[354949724,1740841838281,-494.369955,0.00015,2]
[354949725,1740841838293,-268.28055403,0.00015,2]
[354949726,1740841838331,-906.76464037,0.00015,2]
[354949727,1740841838342,-889.58900093,0.00015,2]
[354949777,1740841840509,-1731.56030681,0.00015,2]
[354949778,1740841840522,-432.93250001,0.00015,2]
[354949779,1740841840732,-2554.30064096,0.00015,2]
[354949780,1740841840744,-2189.7,0.00015,2]
[354949794,1740841844923,-1807.79848797,0.00015,2]
[354949807,1740841846597,-2000.0,0.00015,2]
[354949808,1740841846609,-14971.2090418,0.00015,2]
[354949809,1740841846621,-336.94,0.00015,2]
[354949886,1740841952152,829.57732,0.0001485,2]
[354949890,1740842309938,422.043,0.000147,2]
[354949891,1740842442435,150.0,0.0002002,120]
[354949893,1740842475505,156.67,0.00025,30]
[354949894,1740842576526,691.31444,0.0001485,2]
[354949897,1740842761106,-205.13356541,0.00014973,2]
[354949898,1740842761131,-1000.0,0.00014999,2]
[354949899,1740842761161,-8794.86643459,0.00015,2]
[354949900,1740842790593,-164.60464151,0.000149,2]
[354949901,1740842791953,165.27909547,0.000149,2]
[354949903,1740842816409,1396.61189542,0.000149,2]
[354949904,1740842822327,-9073.5043676,0.00015,2]
[354949931,1740842915622,-2984.45578189,0.000149,2]
[354950484,1740843032837,-946.24,0.000149,2]
[354950536,1740843038517,-1289.54121811,0.000149,2]
[354950537,1740843038527,-1791.25916501,0.000149,2]
[354950538,1740843038537,-222.68258838,0.000149,2]
[354950539,1740843038547,-6204.26235319,0.00015,2]
[354950738,1740843040487,-331.8624,0.00015,2]
[354950797,1740843040819,-2538.33150423,0.00015,2]
[354950799,1740843040831,-1633.88999999,0.00015,2]
[354950802,1740843040843,-30840.2355131,0.00015,2]
[354950806,1740843040855,-568.521,0.00015,2]
[354950813,1740843040883,-545.7393,0.00015,2]
[354951579,1740843303132,125470.02430319,0.00021,30]
[354951583,1740843467430,180.54,0.00024712,30]
[354951585,1740843509990,337.634,0.000147,2]
[354951618,1740844147270,-4624.577,0.000149,2]
[354951619,1740844147329,-2148.90915718,0.000149,2]
[354951620,1740844147401,-837.76197636,0.000149,2]
[354951621,1740844147457,-164.60464151,0.000149,2]
[354951622,1740844147513,-617.09196327,0.000149,2]
[354951623,1740844147573,-165.27909544,0.000149,2]
[354951624,1740844147630,-326.85383288,0.000149,2]
[354951927,1740844231840,-350.74771335,0.000149,2]
[354951928,1740844231850,-500.0,0.00014973,2]
[354951929,1740844231861,-170.74033394,0.00014999,2]
[354951930,1740844231871,-300.0,0.00014999,2]
[354951931,1740844231882,-716.0,0.00015,2]
[354951932,1740844231892,-928.21671355,0.00015,2]
[354951933,1740844231905,-5767.90591404,0.00015,2]
[354951934,1740844231979,-723.8,0.00015,2]
[354951935,1740844231996,-544.4382,0.00015,2]
[354951936,1740844232089,-29899.23525416,0.00015,2]
[354951937,1740844232102,-1950.67266079,0.00015,2]
[354951938,1740844232114,-2127.19067293,0.00015,2]
[354951939,1740844232126,-2226.36125196,0.00015,2]
[354951940,1740844232138,-13144.50005,0.00015,2]
[354951993,1740844237739,-646.0,0.00015,2]
[354951994,1740844237749,-44895.80341071,0.00015,2]
[354951995,1740844237761,-319.99119486,0.00015,2]
[354951999,1740844239878,-813207.67758422,0.00015,2]
[354952000,1740844239889,-243722.44155714,0.00015,2]
[354952001,1740844240196,-574.57633,0.00015,2]
[354952002,1740844240208,-2191.85022955,0.00015,2]
[354952115,1740844243465,-66657.64910273,0.00015,2]
[354952116,1740844243477,-25186.3396482,0.00015,2]
[354952122,1740844244904,-5586.69468783,0.00015,2]
[354952123,1740844244916,-2441.99999,0.00015,2]
[354952124,1740844244967,-496.29468102,0.00015,2]
[354952125,1740844245810,-540.25766701,0.00015,2]
[354952126,1740844245824,-81378.98747787,0.00015,2]
[354952127,1740844245834,-187.85024397,0.00015,2]
[354952128,1740844245843,-25033.16227816,0.00015,2]
[354952129,1740844245854,-221343.49074105,0.00015,2]
[354952130,1740844245864,-576.09536,0.00015,2]
[354952131,1740844245874,-500.0,0.00015918,2]
[354952132,1740844245884,-1682.57428784,0.00016,2]
[354952133,1740844245894,-2302.05586185,0.00016,2]
[354952134,1740844245903,-150.0,0.0001639,2]
[354952135,1740844245913,-350.74771331,0.000164,2]
[354952136,1740844245922,-500.0,0.00016411,2]
[354952137,1740844245932,-420.0,0.00016416,2]
[354952138,1740844245941,-150.0,0.000165,2]
[354952139,1740844245952,-222.2,0.00016737,2]
[354952140,1740844245961,-1009.83815463,0.000177,2]
[354952141,1740844245971,-1009.83815457,0.000177,2]
[354952142,1740844245980,-1009.83815457,0.000179,2]
[354952143,1740844245990,-350.74771331,0.000179,2]
[354952144,1740844246000,-587.0,0.00017966,2]
[354952145,1740844246010,-500.0,0.00018329,2]
[354952146,1740844246019,-1009.83815457,0.000189,2]
[354952147,1740844246029,-615.14,0.00019198,2]
[354952148,1740844246038,-350.74771331,0.000194,2]
[354952149,1740844246047,-165.27909544,0.00019575,2]
[354952150,1740844246057,-823.0,0.00019663,2]
[354952151,1740844246066,-1009.83815457,0.000199,2]
[354952152,1740844246075,-576.09537,0.0002,2]
[354952153,1740844246085,-23900.0,0.00020366,2]
[354952154,1740844246095,-1000.0,0.00020817,2]
[354952155,1740844246105,-350.74771331,0.000209,2]
[354952156,1740844246115,-1009.83815457,0.000209,2]
[354952157,1740844246124,-543.91,0.00020972,2]
[354952158,1740844246134,-150.46,0.0002103,2]
[354952159,1740844246144,-250.0,0.00021138,2]
[354952160,1740844246153,-150.0,0.0002129,7]
[354952161,1740844246163,-615.14,0.00021462,2]
[354952162,1740844246172,-1152.0,0.0002152,2]
[354952163,1740844246182,-176.53,0.00021796,2]
[354952164,1740844246192,-1009.83815457,0.000219,3]
[354952165,1740844246201,-543.91,0.00022021,2]
[354952166,1740844246212,-150.68,0.0002218,2]
[354952167,1740844246222,-350.74771331,0.000224,2]
[354952168,1740844246232,-272.85,0.00022539,2]
[354952169,1740844246242,-158.94,0.00022586,2]
[354952170,1740844246252,-153.43,0.00022676,2]
[354952171,1740844246262,-176.53,0.00022886,2]
[354952172,1740844246272,-1009.83815457,0.000229,3]
[354952173,1740844246282,-543.91,0.00023069,2]
[354952174,1740844246291,-158.94,0.00023339,2]
[354952175,1740844246300,-1000.0,0.00023419,2]
[354952176,1740844246310,-225.0,0.00023552,2]
[354952177,1740844246319,-1543.39,0.00023632,2]
[354952178,1740844246329,-615.14,0.00023726,2]
[354952179,1740844246338,-2000.0,0.000238,5]
[354952180,1740844246347,-171.39,0.00023836,2]
[354952181,1740844246357,-350.74771331,0.000239,2]
[354952182,1740844246366,-1009.83815457,0.000239,3]
[354952183,1740844246376,-176.53,0.00023976,2]
[354952184,1740844246386,-158.94,0.00024091,2]
[354952185,1740844246395,-543.91,0.00024118,2]
[354952186,1740844246405,-165.27909544,0.00024249,2]
[354952187,1740844246416,-94277.0694117,0.000243,2]
[354952188,1740844246426,-26182.86870441,0.0002447,2]
[354952190,1740844246435,-158.94,0.00024844,2]
[354952192,1740844246445,-1009.83815457,0.000249,4]
[354952193,1740844246455,-185.37,0.00025,2]
[354952194,1740844246467,-2294.0,0.00025,2]
[354952195,1740844246477,-576.09537,0.00025,2]
[354952196,1740844246487,-150.24,0.00025,2]
[354952197,1740844246496,-150.24,0.00025,2]
[354952198,1740844246507,-150.24,0.00025,2]
[354952199,1740844246517,-150.24,0.00025,2]
[354952200,1740844246527,-150.24,0.00025,2]
[354952201,1740844246537,-150.24,0.00025,2]
[354952202,1740844246547,-150.24,0.00025,2]
[354952203,1740844246560,-150.24,0.00025,2]
[354952204,1740844246570,-150.24,0.00025,2]
[354952205,1740844246580,-150.24,0.00025,2]
[354952206,1740844246590,-150.24,0.00025,2]
[354952207,1740844246600,-150.24,0.00025,2]
[354952208,1740844246610,-543.91,0.00025166,2]
[354952209,1740844246619,-777.33,0.00025342,2]
[354952210,1740844246629,-777.33,0.00025342,2]
[354952211,1740844246639,-777.33,0.00025342,2]
[354952212,1740844246649,-777.33,0.00025342,2]
[354952213,1740844246659,-350.74771331,0.000254,2]
[354952214,1740844246669,-2110.0,0.000255,2]
[354952215,1740844246679,-1009.83815457,0.000259,4]
[354952216,1740844246689,-615.14,0.0002599,2]
[354952217,1740844246700,-2110.0,0.00026,2]
[354952218,1740844246709,-1000.0,0.00026021,2]
[354952219,1740844246719,-777.33,0.00026301,2]
[354952220,1740844246729,-777.33,0.00026301,2]
[354952221,1740844246739,-777.33,0.00026301,2]
[354952222,1740844246749,-1554.66,0.00026301,2]
[354952223,1740844246759,-777.33,0.00026301,2]
[354952224,1740844246768,-777.33,0.00026301,2]
[354952225,1740844246778,-2110.0,0.000265,2]
[354952226,1740844246788,-577.33,0.00026575,2]
[354952227,1740844246798,-282.34,0.00026575,2]
[354952228,1740844246808,-439.97,0.00026575,2]
[354952229,1740844246817,-154.61,0.00026575,2]
[354952230,1740844246828,-150.0,0.00026575,2]
[354952231,1740844246837,-439.97,0.00026575,2]
[354952232,1740844246847,-150.0,0.00026575,2]
[354952233,1740844246857,-150.0,0.00026575,2]
[354952234,1740844246866,-150.0,0.00026575,2]
[354952235,1740844246875,-439.97,0.00026575,2]
[354952236,1740844246884,-879.46,0.00026575,2]
[354952237,1740844246894,-150.0,0.00026575,2]
[354952238,1740844246903,-150.0,0.00026575,2]
[354952239,1740844246913,-152.92481903,0.00026712,2]
[354952240,1740844246923,-1009.83815457,0.000269,4]
[354952241,1740844246932,-350.74771331,0.000269,2]
[354952242,1740844246942,-2110.0,0.00027,2]
[354952243,1740844246951,-152.92481903,0.00027014,2]
[354952244,1740844246961,-1428.0,0.000271,2]
[354952245,1740844246972,-152.92481903,0.00027288,2]
[354952246,1740844246981,-150.24,0.0002729,2]
[354952247,1740844246991,-83131.62079567,0.000273,2]
[354952248,1740844247001,-150.24,0.00027379,2]
[354952249,1740844247010,-150.24,0.0002738,2]
[354952250,1740844247020,-150.24,0.0002738,2]
[354952251,1740844247030,-150.24,0.00027387,2]
[354952252,1740844247039,-150.24,0.00027387,2]
[354952253,1740844247050,-150.24,0.00027387,2]
[354952254,1740844247059,-150.24,0.00027387,2]
[354952255,1740844247069,-100000.0,0.00027389,5]
[354952256,1740844247079,-165539.5902171,0.0002739,7]
[354952257,1740844247091,-15000.0,0.00027395,2]
[354952258,1740844247101,-517.83,0.00027396,2]
[354952259,1740844247111,-153.088695,0.00027397,2]
[354952260,1740844247120,-2272.798573,0.00027397,2]
[354952261,1740844247130,-150.369316,0.00027397,2]
[354952262,1740844247140,-150.369306,0.00027397,2]
[354952263,1740844247149,-438.233586,0.00027397,2]
[354952264,1740844247160,-1314.700757,0.00027397,2]
[354952265,1740844247170,-500.0,0.00027397,2]
[354952266,1740844247180,-941.65,0.00027397,2]
[354952267,1740844247190,-500.0,0.00027397,2]
[354952268,1740844247200,-552.74,0.00027397,2]
[354952269,1740844247210,-500.0,0.00027397,2]
[354952270,1740844247220,-634.43,0.00027397,2]
[354952271,1740844247230,-677.76,0.00027397,2]
[354952272,1740844247240,-219.21027879,0.00027397,2]
[354952273,1740844247249,-500.0,0.00027397,2]
[354952274,1740844247259,-500.0,0.00027397,2]
[354952275,1740844247269,-690.1,0.00027397,2]
[354952276,1740844247278,-567.63,0.00027397,2]
[354952277,1740844247288,-578.17,0.00027397,2]
[354952278,1740844247298,-554.23,0.00027397,2]
[354952279,1740844247307,-500.0,0.00027397,2]
[354952280,1740844247317,-500.0,0.00027397,2]
[354952281,1740844247327,-864.44,0.00027397,2]
[354952282,1740844247336,-735.4,0.00027397,2]
[354952283,1740844247346,-632.23,0.00027397,2]
[354952284,1740844247356,-500.0,0.00027397,2]
[354952285,1740844247366,-500.0,0.00027397,2]
[354952286,1740844247376,-589.85,0.00027397,2]
[354952287,1740844247386,-500.0,0.00027397,2]
[354952288,1740844247396,-500.0,0.00027397,2]
[354952289,1740844247406,-526.0,0.00027397,2]
[354952290,1740844247417,-500.0,0.00027397,2]
[354952291,1740844247426,-520.51,0.00027397,2]
[354952292,1740844247436,-666.13,0.00027397,2]
[354952293,1740844247446,-500.0,0.00027397,2]
[354952294,1740844247457,-738.49,0.00027397,2]
[354952295,1740844247472,-734.74,0.00027397,2]
[354952296,1740844247482,-500.0,0.00027397,2]
[354952297,1740844247492,-653.42,0.00027397,2]
[354952298,1740844247503,-626.32,0.00027397,2]
[354952299,1740844247513,-500.0,0.00027397,2]
[354952300,1740844247523,-542.28218513,0.00027397,2]
[354952301,1740844247533,-538.51,0.00027397,2]
[354952302,1740844247545,-500.0,0.00027397,2]
[354952303,1740844247556,-500.0,0.00027397,2]
[354952304,1740844247566,-585.77,0.00027397,2]
[354952305,1740844247575,-253.94368227,0.00027397,2]
[354952306,1740844247586,-500.0,0.00027397,2]
[354952307,1740844247602,-561.75,0.00027397,2]
[354952308,1740844247612,-966.23,0.00027397,2]
[354952309,1740844247622,-1091.73,0.00027397,2]
[354952310,1740844247632,-500.0,0.00027397,2]
[354952311,1740844247645,-500.0,0.00027397,2]
[354952312,1740844247662,-500.0,0.00027397,2]
[354952313,1740844247672,-500.0,0.00027397,2]
[354952314,1740844247682,-692.32,0.00027397,2]
[354952315,1740844247692,-914.59,0.00027397,2]
[354952316,1740844247702,-608.84,0.00027397,2]
[354952317,1740844247712,-617.58,0.00027397,2]
[354952318,1740844247722,-563.78,0.00027397,2]
[354952319,1740844247731,-564.97,0.00027397,2]
[354952320,1740844247741,-500.0,0.00027397,2]
[354952321,1740844247751,-978.0,0.00027397,2]
[354952322,1740844247761,-653.67,0.00027397,2]
[354952323,1740844247771,-500.0,0.00027397,2]
[354952324,1740844247780,-660.78,0.00027397,2]
[354952325,1740844247790,-525.74,0.00027397,2]
[354952326,1740844247801,-500.0,0.00027397,2]
[354952327,1740844247811,-708.42,0.00027397,2]
[354952328,1740844247820,-523.84,0.00027397,2]
[354952329,1740844247831,-715.71,0.00027397,2]
[354952330,1740844247840,-500.0,0.00027397,2]
[354952331,1740844247850,-634.26,0.00027397,2]
[354952332,1740844247860,-757.43,0.00027397,2]
[354952333,1740844247869,-1210.64,0.00027397,2]
[354952334,1740844247879,-579.86,0.00027397,2]
[354952335,1740844247888,-553.66,0.00027397,2]
[354952336,1740844247898,-1130.07,0.00027397,2]
[354952337,1740844247909,-635.42,0.00027397,2]
[354952338,1740844247918,-500.0,0.00027397,2]
[354952339,1740844247928,-857.65,0.00027397,2]
[354952340,1740844247938,-503.01,0.00027397,2]
[354952341,1740844247950,-1186.03,0.00027397,2]
[354952342,1740844247959,-500.0,0.00027397,2]
[354952343,1740844247969,-778.21,0.00027397,2]
[354952344,1740844247979,-500.0,0.00027397,2]
[354952345,1740844247988,-658.2,0.00027397,2]
[354952346,1740844247998,-648.4,0.00027397,2]
[354952347,1740844248007,-500.0,0.00027397,2]
[354952348,1740844248018,-596.99864339,0.00027397,2]
[354952349,1740844248027,-1032.14,0.00027397,2]
[354952350,1740844248037,-500.0,0.00027397,2]
[354952351,1740844248048,-500.0,0.00027397,2]
[354952352,1740844248065,-500.0,0.00027397,2]
[354952353,1740844248075,-972.69,0.00027397,2]
[354952354,1740844248085,-515.36,0.00027397,2]
[354952355,1740844248094,-500.0,0.00027397,2]
[354952356,1740844248104,-535.2,0.00027397,2]
[354952357,1740844248114,-500.0,0.00027397,2]
[354952358,1740844248124,-654.82,0.00027397,2]
[354952359,1740844248133,-988.98,0.00027397,2]
[354952360,1740844248143,-1178.94,0.00027397,2]
[354952361,1740844248153,-1000.0,0.00027397,7]
[354952362,1740844248163,-708.07,0.00027397,2]
[354952363,1740844248172,-845.07,0.00027397,2]
[354952364,1740844248182,-158.46475692,0.00027397,2]
[354952365,1740844248191,-560.53,0.00027397,2]
[354952366,1740844248201,-1126.89,0.00027397,2]
[354952367,1740844248212,-689.61,0.00027397,2]
[354952368,1740844248221,-550.66,0.00027397,2]
[354952369,1740844248231,-500.0,0.00027397,2]
[354952370,1740844248241,-500.0,0.00027397,2]
[354952371,1740844248251,-552.17,0.00027397,2]
[354952372,1740844248261,-544.87,0.00027397,2]
[354952373,1740844248271,-500.0,0.00027397,2]
[354952374,1740844248281,-1177.16,0.00027397,2]
[354952375,1740844248291,-795.36,0.00027397,2]
[354952376,1740844248301,-500.0,0.00027397,2]
[354952377,1740844248311,-527.17,0.00027397,2]
[354952378,1740844248321,-1021.1,0.00027397,2]
[354952379,1740844248332,-509.67,0.00027397,2]
[354952380,1740844248342,-500.0,0.00027397,2]
[354952381,1740844248353,-1192.41,0.00027397,2]
[354952382,1740844248363,-846.97,0.00027397,2]
[354952383,1740844248373,-502.57,0.00027397,2]
[354952384,1740844248383,-500.0,0.00027397,2]
[354952385,1740844248393,-588.64,0.00027397,2]
[354952386,1740844248403,-613.89161565,0.00027397,2]
[354952387,1740844248413,-508.01,0.00027397,2]
[354952388,1740844248423,-808.99,0.00027397,2]
[354952389,1740844248433,-576.4,0.00027397,2]
[354952390,1740844248443,-936.79,0.00027397,2]
[354952391,1740844248462,-676.98,0.00027397,2]
[354952392,1740844248476,-746.35,0.00027397,2]
[354952393,1740844248486,-501.27,0.00027397,2]
[354952394,1740844248496,-2726.17,0.00027397,2]
[354952395,1740844248507,-611.65,0.00027397,2]
[354952396,1740844248517,-521.82,0.00027397,2]
[354952397,1740844248526,-925.52,0.00027397,2]
[354952398,1740844248535,-500.0,0.00027397,2]
[354952399,1740844248547,-500.0,0.00027397,2]
[354952400,1740844248557,-637.31,0.00027397,2]
[354952401,1740844248566,-500.0,0.00027397,2]
[354952402,1740844248576,-584.91,0.00027397,2]
[354952403,1740844248586,-500.0,0.00027397,2]
[354952404,1740844248596,-630.83,0.00027397,2]
[354952405,1740844248605,-1192.33,0.00027397,2]
[354952406,1740844248615,-551.5,0.00027397,2]
[354952407,1740844248626,-1000.74,0.00027397,2]
[354952408,1740844248636,-500.0,0.00027397,2]
[354952409,1740844248646,-702.29,0.00027397,2]
[354952410,1740844248656,-591.12,0.00027397,2]
[354952411,1740844248666,-547.83,0.00027397,2]
[354952412,1740844248676,-1055.56,0.00027397,2]
[354952413,1740844248686,-709.49,0.00027397,2]
[354952414,1740844248695,-500.0,0.00027397,2]
[354952415,1740844248705,-636.31,0.00027397,2]
[354952416,1740844248715,-726.61,0.00027397,2]
[354952417,1740844248725,-500.0,0.00027397,2]
[354952418,1740844248735,-500.0,0.00027397,2]
[354952419,1740844248745,-500.0,0.00027397,2]
[354952420,1740844248755,-1013.78,0.00027397,2]
[354952421,1740844248765,-614.75,0.00027397,2]
[354952422,1740844248774,-631.48,0.00027397,2]
[354952423,1740844248784,-1266.56,0.00027397,2]
[354952424,1740844248793,-530.37,0.00027397,2]
[354952425,1740844248802,-848.4,0.00027397,2]
[354952426,1740844248812,-512.5,0.00027397,2]
[354952427,1740844248822,-705.74,0.00027397,2]
[354952428,1740844248831,-500.0,0.00027397,2]
[354952429,1740844248841,-992.56,0.00027397,2]
[354952430,1740844248851,-828.22,0.00027397,2]
[354952431,1740844248861,-500.0,0.00027397,2]
[354952432,1740844248871,-500.0,0.00027397,2]
[354952433,1740844248881,-1082.16,0.00027397,2]
[354952434,1740844248892,-500.0,0.00027397,2]
[354952435,1740844248902,-300.0,0.00027397,2]
[354952436,1740844248912,-1527.86,0.00027397,2]
[354952437,1740844248923,-500.0,0.00027397,2]
[354952438,1740844248932,-500.0,0.00027397,2]
[354952439,1740844248942,-500.0,0.00027397,2]
[354952440,1740844248952,-500.0,0.00027397,2]
[354952441,1740844248962,-515.71,0.00027397,2]
[354952442,1740844248972,-874.67,0.00027397,2]
[354952443,1740844248982,-552.28,0.00027397,2]
[354952444,1740844248991,-692.87,0.00027397,2]
[354952445,1740844249001,-500.0,0.00027397,2]
[354952446,1740844249010,-525.93,0.00027397,2]
[354952447,1740844249020,-1242.44,0.00027397,2]
[354952448,1740844249030,-500.0,0.00027397,2]
[354952449,1740844249039,-652.54,0.00027397,2]
[354952450,1740844249253,-452.61164517,0.00027397,2]
[354952451,1740844249265,-967.11,0.00027397,2]
[354952452,1740844249275,-593.52,0.00027397,2]
[354952453,1740844249285,-787.77,0.00027397,2]
[354952454,1740844249295,-500.0,0.00027397,2]
[354952455,1740844249305,-702.01,0.00027397,2]
[354952456,1740844249314,-365.62662038,0.00027397,2]
[354952457,1740844249324,-1473.77,0.00027397,2]
[354952458,1740844249334,-880.03,0.00027397,2]
[354952459,1740844249343,-1584.51,0.00027397,2]
[354952460,1740844249353,-500.0,0.00027397,2]
[354952461,1740844249362,-634.42,0.00027397,2]
[354952462,1740844249372,-911.35,0.00027397,2]
[354952463,1740844249382,-1318.43,0.00027397,2]
[354952464,1740844249392,-254.53649122,0.00027397,2]
[354952465,1740844249401,-500.0,0.00027397,2]
[354952466,1740844249412,-1286.14,0.00027397,2]
[354952467,1740844249422,-530.8,0.00027397,2]
[354952468,1740844249432,-500.0,0.00027397,2]
[354952469,1740844249442,-500.0,0.00027397,2]
[354952470,1740844249452,-1269.93,0.00027397,2]
[354952471,1740844249464,-738.4,0.00027397,2]
[354952472,1740844249476,-500.0,0.00027397,2]
[354952473,1740844249486,-794.0,0.00027397,2]
[354952474,1740844249496,-500.0,0.00027397,2]
[354952475,1740844249507,-983.7,0.00027397,2]
[354952476,1740844249518,-1741.21,0.00027397,2]
[354952477,1740844249527,-540.45,0.00027397,2]
[354952478,1740844249537,-879.19,0.00027397,2]
[354952479,1740844249550,-3201.74,0.00027397,2]
[354952480,1740844249560,-500.0,0.00027397,2]
[354952481,1740844249570,-500.0,0.00027397,2]
[354952482,1740844249579,-500.0,0.00027397,2]
[354952483,1740844249589,-606.1,0.00027397,2]
[354952484,1740844249599,-1155.73,0.00027397,2]
[354952485,1740844249608,-1339.59,0.00027397,2]
[354952486,1740844249618,-892.58,0.00027397,2]
[354952487,1740844249628,-500.0,0.00027397,2]
[354952488,1740844249638,-512.12,0.00027397,2]
[354952489,1740844249648,-636.59,0.00027397,2]
[354952490,1740844249657,-1041.22,0.00027397,2]
[354952491,1740844249667,-569.07,0.00027397,2]
[354952492,1740844249677,-28496.71,0.00027397,2]
[354952493,1740844249687,-1120.06,0.00027397,2]
[354952494,1740844249697,-500.0,0.00027397,2]
[354952495,1740844249707,-884.75,0.00027397,2]
[354952496,1740844249716,-500.0,0.00027397,2]
[354952497,1740844249726,-500.0,0.00027397,2]
[354952498,1740844249736,-2169.14,0.00027397,2]
[354952499,1740844249746,-500.0,0.00027397,2]
[354952500,1740844249756,-1396.62,0.00027397,2]
[354952501,1740844249766,-1203.39,0.00027397,2]
[354952502,1740844249776,-800.76,0.00027397,2]
[354952503,1740844249785,-500.0,0.00027397,2]
[354952504,1740844249795,-500.0,0.00027397,2]
[354952505,1740844249804,-1058.57,0.00027397,2]
[354952506,1740844249814,-1058.57,0.00027397,2]
[354952507,1740844249824,-5660.63,0.00027397,2]
[354952508,1740844249833,-1058.57,0.00027397,2]
[354952509,1740844249843,-1058.57,0.00027397,2]
[354952510,1740844249852,-1058.57,0.00027397,2]
[354952511,1740844249862,-1058.57,0.00027397,2]
[354952512,1740844249872,-1058.57,0.00027397,2]
[354952513,1740844249882,-1701.29,0.00027397,2]
[354952514,1740844249891,-1058.57,0.00027397,2]
[354952515,1740844249901,-1058.57,0.00027397,2]
[354952516,1740844249911,-500.0,0.00027397,2]
[354952517,1740844249920,-1089.81,0.00027397,2]
[354952518,1740844249930,-1045.22,0.00027397,2]
[354952519,1740844249939,-529.55,0.00027397,2]
[354952520,1740844249949,-2948.85,0.00027397,2]
[354952521,1740844249959,-531.22,0.00027397,2]
[354952522,1740844249968,-500.0,0.00027397,2]
[354952523,1740844249978,-653.33,0.00027397,2]
[354952524,1740844249988,-1711.61,0.00027397,2]
[354952525,1740844249997,-500.0,0.00027397,2]
[354952526,1740844250007,-1561.04,0.00027397,2]
[354952527,1740844250017,-1753.32,0.00027397,2]
[354952528,1740844250026,-1820.73,0.00027397,2]
[354952529,1740844250036,-500.0,0.00027397,2]
[354952530,1740844250046,-508.85,0.00027397,2]
[354952531,1740844250056,-500.0,0.00027397,2]
[354952532,1740844250066,-9704.78,0.00027397,2]
[354952533,1740844250076,-500.0,0.00027397,2]
[354952534,1740844250085,-612.11,0.00027397,2]
[354952535,1740844250095,-1337.48,0.00027397,2]
[354952536,1740844250105,-647.53,0.00027397,2]
[354952537,1740844250115,-1279.01,0.00027397,2]
[354952538,1740844250125,-1337.59,0.00027397,2]
[354952539,1740844250134,-4411.57,0.00027397,2]
[354952540,1740844250144,-500.0,0.00027397,2]
[354952541,1740844250154,-549.77,0.00027397,2]
[354952542,1740844250165,-500.0,0.00027397,2]
[354952543,1740844250175,-1285.82,0.00027397,2]
[354952544,1740844250185,-19486.96,0.00027397,2]
[354952545,1740844250194,-471.28465756,0.00027397,2]
[354952546,1740844250204,-1714.6,0.00027397,2]
[354952547,1740844250214,-2192.77,0.00027397,2]
[354952548,1740844250224,-282.01179247,0.00027397,2]
[354952549,1740844250233,-3759.27,0.00027397,2]
[354952550,1740844250243,-546.02,0.00027397,2]